Body Name,Body,Service Level,Expense Type,Expense Code,Narrative,Date,Transaction Number,Amount,Capital and Revenue,Supplier Name,Supplier ID
South Ribble Council,http://statistics.data.gov.uk/doc/local-authority/30UN,Housing,Cap Grant- Improve Grants,C570,DFG WORK AT ADDRESS REDACTED AGREED TO PAY 50% COST - 1350.00,20/12/2017,0000436588,"1,350.00",Revenue,ABBI PROPERTY SERVICES LTD,131357
South Ribble Council,http://statistics.data.gov.uk/doc/local-authority/30UN,Area 2 - Waste Transport/Eastern & Central Teams,Materials General,4040,GLASS AND BRUSH CARRIER - JFC9731 - AE12AXR - PD,13/12/2017,0000436376,327.38,Revenue,AEBI SCHMIDT UK LTD,00085672
South Ribble Council,http://statistics.data.gov.uk/doc/local-authority/30UN,Planning,Professional Fees,4510,HIF Pro-forma preparation - proposal,06/12/2017,0000436166,"3,091.99",Revenue,AECOM,00118235
South Ribble Council,http://statistics.data.gov.uk/doc/local-authority/30UN,Area 3 - Parks/Leyland East West,Capital Expenditure,C230,Replacement of vine propagation house timber frame with aluminium traditional system at Worde Park Walled Garden Leyland ,13/12/2017,0000435985,"2,309.94",Revenue,Alitex Ltd,132080
South Ribble Council,http://statistics.data.gov.uk/doc/local-authority/30UN,Area 3 - Parks/Leyland East West,Capital Expenditure,C230,Replacement of vine propagation house timber frame with aluminium traditional system at Worde Park Walled Garden Leyland,13/12/2017,0000435986,"16,169.54",Revenue,Alitex Ltd,132080
South Ribble Council,http://statistics.data.gov.uk/doc/local-authority/30UN,Revenues Plus,Financial,4811,post office,13/12/2017,0000436284,"1,014.57",Revenue,ALLPAY LTD,00122276
South Ribble Council,http://statistics.data.gov.uk/doc/local-authority/30UN,Revenues Plus,Financial,4811,pay point,13/12/2017,0000436284,184.48,Revenue,ALLPAY LTD,00122276
South Ribble Council,http://statistics.data.gov.uk/doc/local-authority/30UN,Revenues Plus,Financial,4811,webconnect,13/12/2017,0000436284,46.56,Revenue,ALLPAY LTD,00122276
South Ribble Council,http://statistics.data.gov.uk/doc/local-authority/30UN,Regeneration,Other Misc,4861,Development and Design of the Heritage Trail - Transport Leaflet,20/12/2017,0000436582,300.00,Revenue,Andrew Allen,131969
South Ribble Council,http://statistics.data.gov.uk/doc/local-authority/30UN,Property Services,Rep & Maint Premises,2020,Please undertake a T3 survey to the ceiling void area to the 1st floor east wing at the civic centre,06/12/2017,0000436194,285.00,Revenue,APEC Environmental Ltd,132327
South Ribble Council,http://statistics.data.gov.uk/doc/local-authority/30UN,Democratic Services,Other Misc,4970,Course Booking: RO1 - Returning Officer NAME REDACTED,01/12/2017,0000436180,330.00,Revenue,ASSOC OF ELECTORAL ADMINISTRATORS LTD,00014449
South Ribble Council,http://statistics.data.gov.uk/doc/local-authority/30UN,Democratic Services,Other Misc,4970,Course Booking: RO1 - Returning Officer NAME REDACTED,01/12/2017,0000436180,215.00,Revenue,ASSOC OF ELECTORAL ADMINISTRATORS LTD,00014449
South Ribble Council,http://statistics.data.gov.uk/doc/local-authority/30UN,Development Enterprise & Comm Mgnt,Other Misc,485I,Transport to & from Lancashire Tourism Awards on 9th November 2017@ 250,08/12/2017,0000436356,250.00,Revenue,AVACAB LTD,00109859
South Ribble Council,http://statistics.data.gov.uk/doc/local-authority/30UN,Area 1 - Penwortham Western Parishes,Materials General,4040,100 PARKING PERMITS AS PER QUOTATION 127227 SPRING TERM 2018,08/12/2017,0000435951,293.00,Revenue,B & D PRINT SERVICES LTD,00015134
South Ribble Council,http://statistics.data.gov.uk/doc/local-authority/30UN,Area 3 - Parks/Leyland East West,Materials General,4046,90 bare root trees for the free tree scheme,08/12/2017,0000435907,574.50,Revenue,BANNISTER HALL LANDSCAPE SUPPLIES,00117786
South Ribble Council,http://statistics.data.gov.uk/doc/local-authority/30UN,Planning,Professional Fees,4510,Joint employment land study on behalf of Chorley Borough Council 40% of final fee,06/12/2017,0000436126,"5,535.00",Revenue,BE LTD,130661
South Ribble Council,http://statistics.data.gov.uk/doc/local-authority/30UN,Planning,Professional Fees,4510,Joint employment land study on behalf of Preston City Council 40% of final fee,06/12/2017,0000436127,"5,625.00",Revenue,BE LTD,130661
South Ribble Council,http://statistics.data.gov.uk/doc/local-authority/30UN,Property Services,Capital Expenditure,C230,To undertake further alterations to the electrics in the 2nd & 3rd floor offices for relocation of staff.,06/12/2017,0000436258,"4,140.19",Revenue,BELEC ELECTRICAL LTD,130290
South Ribble Council,http://statistics.data.gov.uk/doc/local-authority/30UN,Property Services,Capital Expenditure,C230,To install cable tray in Comms room for IT,06/12/2017,0000436259,260.78,Revenue,BELEC ELECTRICAL LTD,130290
South Ribble Council,http://statistics.data.gov.uk/doc/local-authority/30UN,Property Services,Capital Expenditure,C230,IT points and boxes from walls and relocate to desk positions on 2nd & 3rd floor offices for relocation of staff. Remove existing ,06/12/2017,0000436261,"1,266.90",Revenue,BELEC ELECTRICAL LTD,130290
South Ribble Council,http://statistics.data.gov.uk/doc/local-authority/30UN,Property Services,Capital Expenditure,C230,Civic Centre - Installation of power supplies to 10 doors at the Civic Centre to coincide with the HFX system  Labour - @23 ph,20/12/2017,0000436579,491.00,Revenue,BELEC ELECTRICAL LTD,130290
South Ribble Council,http://statistics.data.gov.uk/doc/local-authority/30UN,Property Services,Rep & Maint Premises,2020,Civic Centre - Disconnect existing metering gear and consumer unit from 3rd floor and refit at the mains on the 1st floor and mov,20/12/2017,0000436580,411.00,Revenue,BELEC ELECTRICAL LTD,130290
South Ribble Council,http://statistics.data.gov.uk/doc/local-authority/30UN,Property Services,Rep & Maint Premises,2020,Please attend The Folly Caf� and Kiosk and wire in generators while the Electricity company complete work on 1st Nov - 3rd Nov,20/12/2017,0000436619,423.60,Revenue,BELEC ELECTRICAL LTD,130290
South Ribble Council,http://statistics.data.gov.uk/doc/local-authority/30UN,Area 1 - Penwortham Western Parishes,External Contractors Charges,4570,REMOVAL OF FISH FROM NORTH POND AT LONGTON BRICKCROFT,22/12/2017,0000436373,500.00,Revenue,Blue Slate Fishery Limited,132382
South Ribble Council,http://statistics.data.gov.uk/doc/local-authority/30UN,Environmental Health,Recruitment Expenses,1500,Advertisement of EHO in EHN News.,22/12/2017,0000436609,750.00,Revenue,CHARTERED INST OF ENVIRONMENTAL HEALTH,00024963
South Ribble Council,http://statistics.data.gov.uk/doc/local-authority/30UN,Homelessness,Contributions,4730,Block  booking November 2017  for flat 20 1058.40 + VAT (30 days @ 35.28).,06/12/2017,0000436234,"1,058.40",Revenue,CHORLEY BOROUGH COUNCIL,00017352
South Ribble Council,http://statistics.data.gov.uk/doc/local-authority/30UN,Homelessness,Contractors Charges 5,5311,Placement for NAME REDACTED 987.96 + VAT (03/11/2017  30/11/2017 inclusive @ 35.28 per day),06/12/2017,0000436235,987.96,Revenue,CHORLEY BOROUGH COUNCIL,00017352
South Ribble Council,http://statistics.data.gov.uk/doc/local-authority/30UN,Area 2 - Waste Transport/Eastern & Central Teams,External Contractors Charges,4570,SPEC REPAIR - JFC9492 - PO13UUM - PD,20/12/2017,0000436150,"3,709.60",Revenue,CICELEY COMMERCIALS LTD,00059381
South Ribble Council,http://statistics.data.gov.uk/doc/local-authority/30UN,Area 2 - Waste Transport/Eastern & Central Teams,Materials General,4040,"1 CORNER BUMPER, 1 HEADLAMP ASSEMBLY - MX04YNL - JFC9728 - AW",08/12/2017,0000436238,370.61,Revenue,CICELEY COMMERCIALS LTD,00059381
South Ribble Council,http://statistics.data.gov.uk/doc/local-authority/30UN,Regeneration,Capital Expenditure,C230,removal of soil from site,06/12/2017,0000435984,585.00,Revenue,CLIVE HURT (PLANT HIRE) LTD,00023553
South Ribble Council,http://statistics.data.gov.uk/doc/local-authority/30UN,Area 3 - Parks/Leyland East West,Grounds Maint Cntrctrs Chgs,4657,1 GRAB WAGON (GENERAL WASTE) 150.00 GRAB WAGON (HARD CORE) 100.00 ATTEND WORDEN PARK ON FRIDAY,22/12/2017,0000436616,250.00,Revenue,CLIVE HURT (PLANT HIRE) LTD,00023553
South Ribble Council,http://statistics.data.gov.uk/doc/local-authority/30UN,Information Services,Peripherals,4241,8 x Dell OptiPlex 780 USFF/USDT Core 2 Duo 2.93GHZ 8GB 160GB HDD DVD-ROM Windows 10 Pro 64BIT @ 138.32 each,06/12/2017,0000436283,"1,106.56",Revenue,COMPUTER REMARKETING SERVICES LTD,00075763
South Ribble Council,http://statistics.data.gov.uk/doc/local-authority/30UN,Information Services,Peripherals,4241,del,06/12/2017,0000436283,24.00,Revenue,COMPUTER REMARKETING SERVICES LTD,00075763
South Ribble Council,http://statistics.data.gov.uk/doc/local-authority/30UN,Property Services,Rep & Maint Premises,2020,Please attend ADDRESS REDACTED to board up the roller shutter and back door following a break in.,20/12/2017,0000436520,259.20,Revenue,COOPER BESPOKE JOINERY LTD,00104456
South Ribble Council,http://statistics.data.gov.uk/doc/local-authority/30UN,Property Services,Rep & Maint Premises,2020,materials,20/12/2017,0000436520,193.18,Revenue,COOPER BESPOKE JOINERY LTD,00104456
South Ribble Council,http://statistics.data.gov.uk/doc/local-authority/30UN,Property Services,Rep & Maint Premises,2025,Existing roller shutter and replace with new powder coated blue roller shutter at ADDRESS REDACTED as per your quotation de,20/12/2017,0000436522,"1,220.00",Revenue,COOPER BESPOKE JOINERY LTD,00104456
South Ribble Council,http://statistics.data.gov.uk/doc/local-authority/30UN,Property Services,Rep & Maint Premises,2025,"To supply and fit new ply flush external grade door to new casing at ADDRESS REDACTED with fire escape push bar, galvanised",20/12/2017,0000436522,380.16,Revenue,COOPER BESPOKE JOINERY LTD,00104456
South Ribble Council,http://statistics.data.gov.uk/doc/local-authority/30UN,Property Services,Rep & Maint Premises,2025,materials line one,20/12/2017,0000436522,155.52,Revenue,COOPER BESPOKE JOINERY LTD,00104456
South Ribble Council,http://statistics.data.gov.uk/doc/local-authority/30UN,Property Services,Rep & Maint Premises,2025,materials line two,20/12/2017,0000436522,386.24,Revenue,COOPER BESPOKE JOINERY LTD,00104456
South Ribble Council,http://statistics.data.gov.uk/doc/local-authority/30UN,Property Services,Rep & Maint Premises,2020,Please attend Worden Park to gain entry  and change the locks to craft units unit 1 & ground floor brewhouse.,20/12/2017,0000436534,190.08,Revenue,COOPER BESPOKE JOINERY LTD,00104456
South Ribble Council,http://statistics.data.gov.uk/doc/local-authority/30UN,Property Services,Rep & Maint Premises,2020,materials,20/12/2017,0000436534,94.00,Revenue,COOPER BESPOKE JOINERY LTD,00104456
South Ribble Council,http://statistics.data.gov.uk/doc/local-authority/30UN,Property Services,Rep & Maint Premises,2020,Please supply and install new FD30 to the rear exit of  number 3 Forward Industrial Estate - utilise existing furniture steel plate,20/12/2017,0000436535,207.36,Revenue,COOPER BESPOKE JOINERY LTD,00104456
South Ribble Council,http://statistics.data.gov.uk/doc/local-authority/30UN,Property Services,Rep & Maint Premises,2020,materials,20/12/2017,0000436535,92.64,Revenue,COOPER BESPOKE JOINERY LTD,00104456
South Ribble Council,http://statistics.data.gov.uk/doc/local-authority/30UN,Housing,Cap Grant- Improve Grants,C570,"DFG WORKS ATADDRESS REDACTED COST 30,000.00",20/12/2017,0000436617,"12,700.00",Revenue,Cornerstone Building & Maintenance Ltd,131383
South Ribble Council,http://statistics.data.gov.uk/doc/local-authority/30UN,HR & Communications,Advertising,4848,Members Social Media training  mandatory social media training for all members 14th November 2017 Cost for Training ,13/12/2017,0000436413,700.00,Revenue,CREATIVE COMMUNICATORS LTD,132175
South Ribble Council,http://statistics.data.gov.uk/doc/local-authority/30UN,HR & Communications,Advertising,4848,mileage,13/12/2017,0000436413,99.00,Revenue,CREATIVE COMMUNICATORS LTD,132175
South Ribble Council,http://statistics.data.gov.uk/doc/local-authority/30UN,Revenues Plus,Postage,4291,Postage for November 2017,06/12/2017,0000436268,488.63,Revenue,CRITIQOM,131053
South Ribble Council,http://statistics.data.gov.uk/doc/local-authority/30UN,Revenues Plus,Postage,4291,Postage for November 2017,13/12/2017,0000436354,253.94,Revenue,CRITIQOM,131053
South Ribble Council,http://statistics.data.gov.uk/doc/local-authority/30UN,Revenues Plus,Postage,4291,Postage for Dec 17,20/12/2017,0000436627,559.98,Revenue,CRITIQOM,131053
South Ribble Council,http://statistics.data.gov.uk/doc/local-authority/30UN,HR & Communications,Balance Sheet,0030,BIKE - CYCLE TO WORK SCHEME - NAME REDACTED,20/12/2017,0000436603,466.67,Revenue,CYCLESCHEME CO  UK,130237
South Ribble Council,http://statistics.data.gov.uk/doc/local-authority/30UN,Property Services,Rep & Maint Premises,2020,Contract for maintenance of 1 x McSmart 240cr Industrial Water Chiller and 1 x McQuay Air Handling Unit as per Schedule 1,20/12/2017,0000436451,510.00,Revenue,DAIKIN APPLIED SERVICE,130324
South Ribble Council,http://statistics.data.gov.uk/doc/local-authority/30UN,Property Services,Professional Fees,4510,Amaven PE and Software Licence in 7 schools,06/12/2017,0000436188,"3,464.00",Revenue,David Heals  AMAVEN LTD,132356
South Ribble Council,http://statistics.data.gov.uk/doc/local-authority/30UN,Area 2 - Waste Transport/Eastern & Central Teams,External Contractors Charges,4570,SPEC REPAIR - JFC9840 - VO65KPX - PD,20/12/2017,0000436586,404.38,Revenue,DENNIS EAGLE LTD,00019774
South Ribble Council,http://statistics.data.gov.uk/doc/local-authority/30UN,Property Services,Rep & Maint Premises,2020,Remedial works to emergency lighting at the Civic centre as  detailed in report 0361 and per your quotation,08/12/2017,0000436317,590.00,Revenue,DES Electrical Services Ltd,131437
South Ribble Council,http://statistics.data.gov.uk/doc/local-authority/30UN,Property Services,Rep & Maint Premises,2020,Remedial works to emergency lighting at Leyland market as detailed in  report 0166 and as per your quotation,08/12/2017,0000436317,460.00,Revenue,DES Electrical Services Ltd,131437
South Ribble Council,http://statistics.data.gov.uk/doc/local-authority/30UN,Property Services,Rep & Maint Premises,2020,Remedial works to fire alarms at Moss Side Depot as detailed in report No`s 005 & 0362 and as per your quotation,08/12/2017,0000436317,300.00,Revenue,DES Electrical Services Ltd,131437
South Ribble Council,http://statistics.data.gov.uk/doc/local-authority/30UN,Property Services,Rep & Maint Premises,2020,Remedial works to emergency lighting at Moss Side Depot and additional fittings as detailed in report No`s 005 & 0362 ,08/12/2017,0000436317,"1,430.00",Revenue,DES Electrical Services Ltd,131437
South Ribble Council,http://statistics.data.gov.uk/doc/local-authority/30UN,Property Services,Rep & Maint Premises,2020,Remedial works to emergency lighting at worden arts centre as detailed in report No 0164 and as per your quotation,08/12/2017,0000436317,340.00,Revenue,DES Electrical Services Ltd,131437
South Ribble Council,http://statistics.data.gov.uk/doc/local-authority/30UN,Property Services,Rep & Maint Premises,2020,Remedial works to emergency lighting at worden derby wing as detailed in report No 0163 and as per your quotation,08/12/2017,0000436317,75.00,Revenue,DES Electrical Services Ltd,131437
South Ribble Council,http://statistics.data.gov.uk/doc/local-authority/30UN,Property Services,Rep & Maint Premises,2020,Remedial works to emergency lighting at Longton Brickcroft as detailed in report No 0173 and as per your quotation,08/12/2017,0000436317,495.00,Revenue,DES Electrical Services Ltd,131437
South Ribble Council,http://statistics.data.gov.uk/doc/local-authority/30UN,Property Services,Rep & Maint Premises,2020,Remedial works to emergency lighting at Kingsfold Community Centre as detailed in report No 0169 and as per your quotation,08/12/2017,0000436317,320.00,Revenue,DES Electrical Services Ltd,131437
South Ribble Council,http://statistics.data.gov.uk/doc/local-authority/30UN,Property Services,Rep & Maint Premises,2020,Remedial works to emergency lighting plus additional  units at Moss Side Community centre as detailed in report No 0171 ,08/12/2017,0000436317,375.00,Revenue,DES Electrical Services Ltd,131437
South Ribble Council,http://statistics.data.gov.uk/doc/local-authority/30UN,Property Services,Rep & Maint Fixed Plant,2035,Please attend the Civic centre to retext the fire panel as discussed with the property maintenance  officer,08/12/2017,0000436319,290.00,Revenue,DES Electrical Services Ltd,131437
South Ribble Council,http://statistics.data.gov.uk/doc/local-authority/30UN,Area 3 - Parks/Leyland East West,Capital Expenditure,C230,"IMPROVEMENT WORKS TO WESTERN SIDE OF WITHY GROVE PARK, BAMBER BRIDGE",08/12/2017,0000436128,"65,107.11",Revenue,Dowhigh Ltd,132324
South Ribble Council,http://statistics.data.gov.uk/doc/local-authority/30UN,Regeneration,Capital Expenditure,C234,Horse and Cart gateway Feature,15/12/2017,0000436397,"35,000.00",Revenue,DP STRUCTURES LTD,00120485
South Ribble Council,http://statistics.data.gov.uk/doc/local-authority/30UN,Regeneration,Capital Expenditure,C234,15 off 1.8m Corten Planters,13/12/2017,0000436398,"33,800.00",Revenue,DP STRUCTURES LTD,00120485
South Ribble Council,http://statistics.data.gov.uk/doc/local-authority/30UN,Revenues Plus,Balance Sheet,0001,,01/12/2017,0000436184,568.16,Revenue,Dr E Craven & Partners,132431
South Ribble Council,http://statistics.data.gov.uk/doc/local-authority/30UN,Regeneration,External Contractors Charges,4570,New Longton Improvements,01/12/2017,0000435932,"1,800.00",Revenue,Duxburys Grounds and Garden Maintenance,132421
South Ribble Council,http://statistics.data.gov.uk/doc/local-authority/30UN,Regeneration,Capital Expenditure,C230,New Longton Improvements,01/12/2017,0000435932,"4,175.00",Revenue,Duxburys Grounds and Garden Maintenance,132421
South Ribble Council,http://statistics.data.gov.uk/doc/local-authority/30UN,Information Services,Peripherals,4246,3 x Fujitsu fi-5750C Maintenance and 1 x Fujitsu fi-6770 Maintenance for period 31/01/18 - 30/01/19,06/12/2017,0000436265,"2,570.00",Revenue,E FILE UK LTD,00110958
South Ribble Council,http://statistics.data.gov.uk/doc/local-authority/30UN,Area 3 - Parks/Leyland East West,Operational Furniture & Equip,4019,1 x Evergreen Seat with black cast iron frame and black slats as per quotation ref Q8787 (No ground fixings),08/12/2017,0000436199,575.00,Revenue,EARTH ANCHORS LTD,00020925
South Ribble Council,http://statistics.data.gov.uk/doc/local-authority/30UN,Area 3 - Parks/Leyland East West,Operational Furniture & Equip,4019,Carriage charge,08/12/2017,0000436199,68.00,Revenue,EARTH ANCHORS LTD,00020925
South Ribble Council,http://statistics.data.gov.uk/doc/local-authority/30UN,Information Services,Peripherals,4260,,13/12/2017,0000436400,"2,189.46",Revenue,EE Ltd,131653
South Ribble Council,http://statistics.data.gov.uk/doc/local-authority/30UN,Information Services,Peripherals,4260,,13/12/2017,0000436400,247.00,Revenue,EE Ltd,131653
South Ribble Council,http://statistics.data.gov.uk/doc/local-authority/30UN,Information Services,Publications,4142,Subscription renewal  1 copy Local Government Chronicle Dec 17 to Dec18 Subscription no.4000548216,13/12/2017,0000436448,299.00,Revenue,EMAP COMMUNICATIONS LTD,00021241
South Ribble Council,http://statistics.data.gov.uk/doc/local-authority/30UN,Healthy Communities,Sports Dev Expenses,4890,3 participants taking part in a athletics course  245 each,01/12/2017,0000436160,980.00,Revenue,England Athletics Limited,132296
South Ribble Council,http://statistics.data.gov.uk/doc/local-authority/30UN,Information Services,Consultancy Fees,4541,Site Survey 1 man 1 day - To perform a W-Fi Survey at The Civic Centre ANDSite Survey 1 man 1 day To perform a W-Fi Survey,22/12/2017,0000436704,"1,300.00",Revenue,Ensign Communications Ltd,132413
South Ribble Council,http://statistics.data.gov.uk/doc/local-authority/30UN,Democratic Services,Other Expenses,463A,2 x union jack flags 2 x South Ribble logo flags (blue writing) 2 x Civic flags (3 acorns)  All 2 yards in size as previously ordered.,22/12/2017,0000436660,"1,156.00",Revenue,ENSIGN FLAGS CO LTD,130047
South Ribble Council,http://statistics.data.gov.uk/doc/local-authority/30UN,Information Services,Peripherals,4248,Annual maintenance for Esri ArcGIS Technical Support & Software for period 06/01/18 - 05/01/19,13/12/2017,0000436434,"14,173.00",Revenue,ESRI (UK) LTD,00053565
South Ribble Council,http://statistics.data.gov.uk/doc/local-authority/30UN,Revenues Plus,Professional Fees,4520,Annual fee from 31.3.17 for 12 month period,08/12/2017,0000436344,"1,600.00",Revenue,EXPERIAN LTD,00094045
South Ribble Council,http://statistics.data.gov.uk/doc/local-authority/30UN,Area 2 - Waste Transport/Eastern & Central Teams,External Contractors Charges,4570,CLINICAL WASTE COLLECTIONS NOVEMBER 2017,15/12/2017,0000436352,396.00,Revenue,FCC Environment Services (UK) Ltd,131612
South Ribble Council,http://statistics.data.gov.uk/doc/local-authority/30UN,Area 2 - Waste Transport/Eastern & Central Teams,Balance Sheet,0030,retention,15/12/2017,0000436352,-19.80,Revenue,FCC Environment Services (UK) Ltd,131612
South Ribble Council,http://statistics.data.gov.uk/doc/local-authority/30UN,Regeneration,Other Misc,4851,Christmas Lights,13/12/2017,0000436320,466.00,Revenue,FESTIVE LIGHTS,130235
South Ribble Council,http://statistics.data.gov.uk/doc/local-authority/30UN,Area 3 - Parks/Leyland East West,Professional Fees,4510,,20/12/2017,0000436498,346.94,Revenue,FRIENDS OF HURST GRANGE PARK,00113405
South Ribble Council,http://statistics.data.gov.uk/doc/local-authority/30UN,HR & Communications,Training Expense-Course Fees,1406,1 PLACE ON THINKING UNDER PRESSURE COURSE,01/12/2017,0000435850,499.00,Revenue,Government Knowledge,132429
South Ribble Council,http://statistics.data.gov.uk/doc/local-authority/30UN,Shared Financial Services,Professional Fees,4512,Main Audit Fee for 2017/18,20/12/2017,0000436499,"10,981.00",Revenue,Grant Thornton UK LLP,130718
South Ribble Council,http://statistics.data.gov.uk/doc/local-authority/30UN,Area 3 - Parks/Leyland East West,Grounds Maint Cntrctrs Chgs,4657,Repair & Covering Safer Surfaces at Riverside Penwortham and Withy Grove Bamber Bridge.,22/12/2017,0000435849,"5,700.00",Revenue,GROUNDWORK LEISURE SERVICES LTD,130104
South Ribble Council,http://statistics.data.gov.uk/doc/local-authority/30UN,Area 3 - Parks/Leyland East West,Grounds Maint Cntrctrs Chgs,4657,Riverside - Junior Multiclimber Withy Grove - Hexagonal swing with additional patch repair on Gyrospire Roundabout.,22/12/2017,0000435849,"5,700.00",Revenue,GROUNDWORK LEISURE SERVICES LTD,130104
South Ribble Council,http://statistics.data.gov.uk/doc/local-authority/30UN,Democratic Services,Training Expense-Course Fees,1400,ACCOMMODATION FOR NAME REDACTED TO INCLUDE BED AND BREAKFAST FOR THEIR NOVEMBER UNIT,06/12/2017,0000436200,280.00,Revenue,Grwp Llandrillo Menai,132364
South Ribble Council,http://statistics.data.gov.uk/doc/local-authority/30UN,Democratic Services,Training Expense-Course Fees,1400,ACCOMMODATION FOR NAME REDACTED TO INCLUDE BED AND BREAKFAST FOR THEIR DECEMBER UNIT,06/12/2017,0000436200,280.00,Revenue,Grwp Llandrillo Menai,132364
South Ribble Council,http://statistics.data.gov.uk/doc/local-authority/30UN,Area 1 - Penwortham Western Parishes,Contract Hire & Lease Costs,3212,Sweeper Hire Monday 16/10/2017 for 7 weeks 620 Per/week,08/12/2017,0000435971,620.00,Revenue,GULLIVERS TRUCK HIRE LTD,130582
South Ribble Council,http://statistics.data.gov.uk/doc/local-authority/30UN,Area 1 - Penwortham Western Parishes,Contract Hire & Lease Costs,3212,Sweeper Hire Monday 16/10/2017 for 7 weeks 620 Per/week,08/12/2017,0000435983,620.00,Revenue,GULLIVERS TRUCK HIRE LTD,130582
South Ribble Council,http://statistics.data.gov.uk/doc/local-authority/30UN,Area 1 - Penwortham Western Parishes,Contract Hire & Lease Costs,3212,Sweeper Hire Monday 16/10/2017 for 7 weeks 620 Per/week,08/12/2017,0000436185,620.00,Revenue,GULLIVERS TRUCK HIRE LTD,130582
South Ribble Council,http://statistics.data.gov.uk/doc/local-authority/30UN,Area 2 - Waste Transport/Eastern & Central Teams,Materials General,4040,ASSORTED FILTERS (IMPREST STOCK),06/12/2017,0000436267,502.05,Revenue,H & J SERVICES LTD,00114446
South Ribble Council,http://statistics.data.gov.uk/doc/local-authority/30UN,Area 2 - Waste Transport/Eastern & Central Teams,Materials General,4040,4 SETS BRAKE PADS - BIN 539 - AW,08/12/2017,0000436332,340.00,Revenue,H & J SERVICES LTD,00114446
South Ribble Council,http://statistics.data.gov.uk/doc/local-authority/30UN,Democratic Services,Printing,4120,"HE1005   Hera set-up charge -   400.00 HE1025   Hera household, rate per successful reg (21,146.00 x 0.19 4017.74 HE1022",15/12/2017,0000436409,"4,817.74",Revenue,HALAROSE LTD,00024358
South Ribble Council,http://statistics.data.gov.uk/doc/local-authority/30UN,Democratic Services,Other Misc,4970,Annual support for Eros Scanning & maintenance - 6 users,22/12/2017,0000436669,"1,340.35",Revenue,HALAROSE LTD,00024358
South Ribble Council,http://statistics.data.gov.uk/doc/local-authority/30UN,Neighbourhood Admin & Support,Vehicle Running Costs,3132,"15,000 litres DIESEL (@97.49 pence per litre)",20/12/2017,0000436594,"14,511.97",Revenue,Hall Fuels trading name of WFL (UK) Ltd,00116758
South Ribble Council,http://statistics.data.gov.uk/doc/local-authority/30UN,Area 2 - Waste Transport/Eastern & Central Teams,External Contractors Charges,4570,SPEC REPAIR - PWR04A2 - 9657,06/12/2017,0000436231,296.39,Revenue,HANSON CLEANING EQUIPMENT LIMITED,00121293
South Ribble Council,http://statistics.data.gov.uk/doc/local-authority/30UN,HR & Communications,Operational Furniture & Equip,4010,100 x BLANK ACCESS CARDS,15/12/2017,0000436452,338.50,Revenue,HFX LTD,00023728
South Ribble Council,http://statistics.data.gov.uk/doc/local-authority/30UN,Shared Financial Services,Balance Sheet,0140,,22/12/2017,0000436663,477.73,Revenue,HM REVENUE & CUSTOMS,00024837
South Ribble Council,http://statistics.data.gov.uk/doc/local-authority/30UN,HR & Communications,Training Expense-Course Fees,1402,NAME REDACTED TO ATTEND COMPANY SECRETARY TRAINING COURSE IN LONDON ON 11 OCTOBER 2017,13/12/2017,0000434443,665.00,Revenue,ICSA,00024853
South Ribble Council,http://statistics.data.gov.uk/doc/local-authority/30UN,Information Services,Peripherals,4248,LALM Lalpac Comprehensive Package (Classic),13/12/2017,0000436401,"8,391.97",Revenue,IDOX PLC,00104485
South Ribble Council,http://statistics.data.gov.uk/doc/local-authority/30UN,Information Services,Peripherals,4248,LALM Additional user licence maintenance. For period 23/01/18 - 22/01/19,13/12/2017,0000436401,"2,831.32",Revenue,IDOX PLC,00104485
South Ribble Council,http://statistics.data.gov.uk/doc/local-authority/30UN,Information Services,Peripherals,4241,"10 x Dell P19175 48cm (18.9) LED LCD Monitor, plus delivery, as per quote",06/12/2017,0000436278,"1,405.00",Revenue,IML Technology,132172
South Ribble Council,http://statistics.data.gov.uk/doc/local-authority/30UN,Revenues Plus,Professional Fees,4510,RV Finder - various addresses,06/12/2017,0000436271,"1,353.00",Revenue,Inform CPI Ltd,131666
South Ribble Council,http://statistics.data.gov.uk/doc/local-authority/30UN,Information Services,Peripherals,4243,2 x Red Hat Enterprise Linux Server Standard Licence - 1 year renewal,13/12/2017,0000436326,931.22,Revenue,INSIGHT UK,00120744
South Ribble Council,http://statistics.data.gov.uk/doc/local-authority/30UN,Revenues Plus,Professional Fees,4520,IRRV Forum Fees,15/12/2017,0000436484,"1,095.00",Revenue,INST OF REVENUES RATING & VALUATION,00024950
South Ribble Council,http://statistics.data.gov.uk/doc/local-authority/30UN,Area 3 - Parks/Leyland East West,Grounds Maint Cntrctrs Chgs,4657,100 x 1.2m anti � slip inserts at 4 each,08/12/2017,0000436292,400.00,Revenue,JOHN HY MAYOR & SONS LTD,00028176
South Ribble Council,http://statistics.data.gov.uk/doc/local-authority/30UN,Planning,Advertising,4841,Press notices for planning applications 2017/18,06/12/2017,0000435919,540.00,Revenue,JOHNSTON PUBLISHING (NORTH WEST),00011345
South Ribble Council,http://statistics.data.gov.uk/doc/local-authority/30UN,Planning,Advertising,4841,Press notices for planning applications 2017/18,06/12/2017,0000436005,540.00,Revenue,JOHNSTON PUBLISHING (NORTH WEST),00011345
South Ribble Council,http://statistics.data.gov.uk/doc/local-authority/30UN,Planning,Advertising,4841,Press notices for planning applications 2017/18,06/12/2017,0000436033,648.00,Revenue,JOHNSTON PUBLISHING (NORTH WEST),00011345
South Ribble Council,http://statistics.data.gov.uk/doc/local-authority/30UN,Planning,Advertising,4841,Press notices for planning applications 2017/18,06/12/2017,0000436034,"1,026.00",Revenue,JOHNSTON PUBLISHING (NORTH WEST),00011345
South Ribble Council,http://statistics.data.gov.uk/doc/local-authority/30UN,Planning,Advertising,4841,Press notices for planning applications 2017/18,15/12/2017,0000436417,567.00,Revenue,JOHNSTON PUBLISHING (NORTH WEST),00011345
South Ribble Council,http://statistics.data.gov.uk/doc/local-authority/30UN,Planning,Advertising,4841,Press notices for planning applications 2017/18,20/12/2017,0000436581,540.00,Revenue,JOHNSTON PUBLISHING (NORTH WEST),00011345
South Ribble Council,http://statistics.data.gov.uk/doc/local-authority/30UN,Area 3 - Parks/Leyland East West,External Contractors Charges,4570,PROVIDE TRACTOR/OPERATOR FOR VERGE CUTTING AROUND THE BOROUGH. 1000M SAFETY. BASED ON MONDAY,08/12/2017,0000435889,"2,800.00",Revenue,KAYS TRAFFIC MANAGEMENT LTD,00072342
South Ribble Council,http://statistics.data.gov.uk/doc/local-authority/30UN,Area 3 - Parks/Leyland East West,External Contractors Charges,4570,PO fully Grn`d but still had 2 more inv to pay off with Po,13/12/2017,0000436378,"1,050.00",Revenue,KAYS TRAFFIC MANAGEMENT LTD,00072342
South Ribble Council,http://statistics.data.gov.uk/doc/local-authority/30UN,Area 3 - Parks/Leyland East West,External Contractors Charges,4570,Po 31664 grn`d in full in error 2 extra inv still to be paid under that po,13/12/2017,0000436379,350.00,Revenue,KAYS TRAFFIC MANAGEMENT LTD,00072342
South Ribble Council,http://statistics.data.gov.uk/doc/local-authority/30UN,Homelessness,Contributions,4730,Key housing advice and mediation Q4,22/12/2017,0000436666,"5,000.00",Revenue,KEY UNLOCKING FUTURES LTD,00098601
South Ribble Council,http://statistics.data.gov.uk/doc/local-authority/30UN,Property Services,Rep & Maint Premises,2020,2017 / 2018 contract for water hygiene monitoring at Gregson Lane Pavilion,08/12/2017,0000436240,46.00,Revenue,KNOWSLEY BLD & ENVIRONMENTAL SERVICES LT,00072656
South Ribble Council,http://statistics.data.gov.uk/doc/local-authority/30UN,Property Services,Rep & Maint Premises,2020,2017 / 2018 contract for water hygiene monitoring at Hern Avenue Pavilion,08/12/2017,0000436240,46.00,Revenue,KNOWSLEY BLD & ENVIRONMENTAL SERVICES LT,00072656
South Ribble Council,http://statistics.data.gov.uk/doc/local-authority/30UN,Property Services,Rep & Maint Premises,2020,2017 / 2018 contract for water hygiene monitoring at Higher Walton Pavilion,08/12/2017,0000436240,46.00,Revenue,KNOWSLEY BLD & ENVIRONMENTAL SERVICES LT,00072656
South Ribble Council,http://statistics.data.gov.uk/doc/local-authority/30UN,Property Services,Rep & Maint Premises,2020,2017 / 2018 contract for water hygiene monitoring at Holme Pavilion,08/12/2017,0000436240,46.00,Revenue,KNOWSLEY BLD & ENVIRONMENTAL SERVICES LT,00072656
South Ribble Council,http://statistics.data.gov.uk/doc/local-authority/30UN,Property Services,Rep & Maint Premises,2020,2017 / 2018 contract for water hygiene monitoring at Hutton Pavilion,08/12/2017,0000436240,46.00,Revenue,KNOWSLEY BLD & ENVIRONMENTAL SERVICES LT,00072656
South Ribble Council,http://statistics.data.gov.uk/doc/local-authority/30UN,Property Services,Rep & Maint Premises,2020,2017 / 2018 contract for water hygiene monitoring at Kingsfold pavilion,08/12/2017,0000436240,53.50,Revenue,KNOWSLEY BLD & ENVIRONMENTAL SERVICES LT,00072656
South Ribble Council,http://statistics.data.gov.uk/doc/local-authority/30UN,Property Services,Rep & Maint Premises,2020,2017 / 2018 contract for water hygiene monitoring at sports pavilions Worden Park (formerly long pavilion),08/12/2017,0000436240,46.00,Revenue,KNOWSLEY BLD & ENVIRONMENTAL SERVICES LT,00072656
South Ribble Council,http://statistics.data.gov.uk/doc/local-authority/30UN,Property Services,Rep & Maint Premises,2020,2017 / 2018 contract for water hygiene monitoring at Moss Side Pavilion,08/12/2017,0000436240,53.50,Revenue,KNOWSLEY BLD & ENVIRONMENTAL SERVICES LT,00072656
South Ribble Council,http://statistics.data.gov.uk/doc/local-authority/30UN,Property Services,Rep & Maint Premises,2020,2017 / 2018 contract for water hygiene monitoring at Much Hoole Pavilion,08/12/2017,0000436240,46.00,Revenue,KNOWSLEY BLD & ENVIRONMENTAL SERVICES LT,00072656
South Ribble Council,http://statistics.data.gov.uk/doc/local-authority/30UN,Property Services,Rep & Maint Premises,2020,2017 / 2018 contract for water hygiene monitoring at Penwortham Holme,08/12/2017,0000436240,46.00,Revenue,KNOWSLEY BLD & ENVIRONMENTAL SERVICES LT,00072656
South Ribble Council,http://statistics.data.gov.uk/doc/local-authority/30UN,Property Services,Rep & Maint Premises,2020,2017 / 2018 contract for water hygiene monitoring at St Cuthbert`s Pavilion,08/12/2017,0000436240,46.00,Revenue,KNOWSLEY BLD & ENVIRONMENTAL SERVICES LT,00072656
South Ribble Council,http://statistics.data.gov.uk/doc/local-authority/30UN,Property Services,Rep & Maint Premises,2020,2017 / 2018 contract for water hygiene monitoring at Withy Grove Pavilion,08/12/2017,0000436240,53.50,Revenue,KNOWSLEY BLD & ENVIRONMENTAL SERVICES LT,00072656
South Ribble Council,http://statistics.data.gov.uk/doc/local-authority/30UN,Property Services,Rep & Maint Premises,2020,2017 / 2018 contract for water hygiene monitoring at Holland House Farm Pavilion,08/12/2017,0000436240,46.00,Revenue,KNOWSLEY BLD & ENVIRONMENTAL SERVICES LT,00072656
South Ribble Council,http://statistics.data.gov.uk/doc/local-authority/30UN,Property Services,Rep & Maint Premises,2020,"2017 / 2018 contract for water hygiene monitoring at The Derby Wing, Worden Park",08/12/2017,0000436240,43.50,Revenue,KNOWSLEY BLD & ENVIRONMENTAL SERVICES LT,00072656
South Ribble Council,http://statistics.data.gov.uk/doc/local-authority/30UN,Property Services,Rep & Maint Premises,2020,2017 / 2018 contract for water hygiene monitoring at Carr Street Community Centre,08/12/2017,0000436240,43.50,Revenue,KNOWSLEY BLD & ENVIRONMENTAL SERVICES LT,00072656
South Ribble Council,http://statistics.data.gov.uk/doc/local-authority/30UN,Property Services,Rep & Maint Premises,2020,2017 / 2018 contract for water hygiene monitoring at Kingsfold Community Centre,08/12/2017,0000436240,43.50,Revenue,KNOWSLEY BLD & ENVIRONMENTAL SERVICES LT,00072656
South Ribble Council,http://statistics.data.gov.uk/doc/local-authority/30UN,Property Services,Rep & Maint Premises,2020,2017 / 2018 contract for water hygiene monitoring at Higher Walton Community Centre,08/12/2017,0000436240,43.50,Revenue,KNOWSLEY BLD & ENVIRONMENTAL SERVICES LT,00072656
South Ribble Council,http://statistics.data.gov.uk/doc/local-authority/30UN,Property Services,Rep & Maint Premises,2020,2017 / 2018 contract for water hygiene monitoring at Moss Side Community Centre,08/12/2017,0000436240,43.50,Revenue,KNOWSLEY BLD & ENVIRONMENTAL SERVICES LT,00072656
South Ribble Council,http://statistics.data.gov.uk/doc/local-authority/30UN,Property Services,Rep & Maint Premises,2020,2017 / 2018 contract for water hygiene monitoring at Worden Arts & Craft Centre,08/12/2017,0000436240,58.50,Revenue,KNOWSLEY BLD & ENVIRONMENTAL SERVICES LT,00072656
South Ribble Council,http://statistics.data.gov.uk/doc/local-authority/30UN,Property Services,Rep & Maint Premises,2020,2017 /2018 contract for water hygiene monitoring at Leyland Market,08/12/2017,0000436240,43.50,Revenue,KNOWSLEY BLD & ENVIRONMENTAL SERVICES LT,00072656
South Ribble Council,http://statistics.data.gov.uk/doc/local-authority/30UN,Property Services,Rep & Maint Premises,2020,2017 / 2018  contract for water hygiene monitoring at Hurst Grange Park,08/12/2017,0000436240,43.50,Revenue,KNOWSLEY BLD & ENVIRONMENTAL SERVICES LT,00072656
South Ribble Council,http://statistics.data.gov.uk/doc/local-authority/30UN,Property Services,Rep & Maint Premises,2020,"2017 / 2018 contract for water hygiene monitoring at Crossroads toilets, Worden Park",08/12/2017,0000436240,23.00,Revenue,KNOWSLEY BLD & ENVIRONMENTAL SERVICES LT,00072656
South Ribble Council,http://statistics.data.gov.uk/doc/local-authority/30UN,Property Services,Rep & Maint Premises,2020,2017 / 2018 contract for water hygiene monitoring at Hope Terrace Public toilets,08/12/2017,0000436240,23.00,Revenue,KNOWSLEY BLD & ENVIRONMENTAL SERVICES LT,00072656
South Ribble Council,http://statistics.data.gov.uk/doc/local-authority/30UN,Property Services,Rep & Maint Premises,2020,2017 / 2018 contract for water hygiene monitoring at Longton Brick Croft,08/12/2017,0000436240,26.00,Revenue,KNOWSLEY BLD & ENVIRONMENTAL SERVICES LT,00072656
South Ribble Council,http://statistics.data.gov.uk/doc/local-authority/30UN,Property Services,Rep & Maint Premises,2020,"2017 / 2018 contract for water hygiene monitoring at Playground toilets, Worden Park",08/12/2017,0000436240,23.00,Revenue,KNOWSLEY BLD & ENVIRONMENTAL SERVICES LT,00072656
South Ribble Council,http://statistics.data.gov.uk/doc/local-authority/30UN,Property Services,Rep & Maint Premises,2020,2017 / 2018 contract for water hygiene monitoring at SR Museum & Exhibition Centre,08/12/2017,0000436240,26.00,Revenue,KNOWSLEY BLD & ENVIRONMENTAL SERVICES LT,00072656
South Ribble Council,http://statistics.data.gov.uk/doc/local-authority/30UN,Property Services,Rep & Maint Premises,2020,2017 / 2018 contract for water hygiene monitoring at Withy Grove public toilets,08/12/2017,0000436240,23.00,Revenue,KNOWSLEY BLD & ENVIRONMENTAL SERVICES LT,00072656
South Ribble Council,http://statistics.data.gov.uk/doc/local-authority/30UN,Property Services,Rep & Maint Premises,2020,"2017 / 2018 contract for water hygiene monitoring at the Civic Centre, Leyland",08/12/2017,0000436240,334.50,Revenue,KNOWSLEY BLD & ENVIRONMENTAL SERVICES LT,00072656
South Ribble Council,http://statistics.data.gov.uk/doc/local-authority/30UN,Property Services,Rep & Maint Premises,2020,2017 / 2018 contract for water hygiene monitoring at Moss Side Depot,08/12/2017,0000436240,112.50,Revenue,KNOWSLEY BLD & ENVIRONMENTAL SERVICES LT,00072656
South Ribble Council,http://statistics.data.gov.uk/doc/local-authority/30UN,Property Services,Rep & Maint Premises,2020,2017 / 2018 contract for water hygiene monitoring at Longton Pavilion,08/12/2017,0000436240,46.00,Revenue,KNOWSLEY BLD & ENVIRONMENTAL SERVICES LT,00072656
South Ribble Council,http://statistics.data.gov.uk/doc/local-authority/30UN,Area 2 - Waste Transport/Eastern & Central Teams,Waste Disposal Charges,5112,October 2017 - Incineration of Clinical Waste.,20/12/2017,0000436655,593.56,Revenue,LANCASHIRE TEACHING FT,00120715
South Ribble Council,http://statistics.data.gov.uk/doc/local-authority/30UN,Area 2 - Waste Transport/Eastern & Central Teams,Contractors Charges 5,5412,"Quarter 2 Disposal Fee, Landfill Tax & 5% Admin Fee.",15/12/2017,0000436201,"56,983.09",Revenue,LANCS COUNTY COUNCIL,00041645
South Ribble Council,http://statistics.data.gov.uk/doc/local-authority/30UN,Area 1 - Penwortham Western Parishes,External Contractors Charges,4570,ESTIMATED MAINTENANCE & ENERGY COST FOR AMENITY LIGHTING 1.4.16 - 31.3.17,08/12/2017,0000436282,"3,621.87",Revenue,LANCS COUNTY COUNCIL,00050681
South Ribble Council,http://statistics.data.gov.uk/doc/local-authority/30UN,Area 1 - Penwortham Western Parishes,Grounds Maintanance,2040,ESTIMATED MAINTENANCE & ENERGY COST OF CAR PARK LIGHTING 1.4.16 - 31.3.17,08/12/2017,0000436282,"6,311.22",Revenue,LANCS COUNTY COUNCIL,00050681
South Ribble Council,http://statistics.data.gov.uk/doc/local-authority/30UN,Area 1 - Penwortham Western Parishes,Rep & Maint Premises,2020,ESTIMATED MAINTENANCE & ENERGY COST PUBLIC BUILDING LIGHTING 1.4.16-31.3.17,08/12/2017,0000436282,"1,060.97",Revenue,LANCS COUNTY COUNCIL,00050681
South Ribble Council,http://statistics.data.gov.uk/doc/local-authority/30UN,Shared Financial Services,Balance Sheet,0030,Payment of CIL  received re City Deal Site H33,13/12/2017,0000436437,"109,501.99",Revenue,LANCS COUNTY COUNCIL,00041645
South Ribble Council,http://statistics.data.gov.uk/doc/local-authority/30UN,Area 2 - Waste Transport/Eastern & Central Teams,Materials General,4040,"4 SPRING EYE BUSHES, 1 SET DISC PADS, 2 CHECK STRAPS, 2 SHOCKER BUSHES - NX58FJZ - JFC9674 - AW",20/12/2017,0000436642,272.85,Revenue,LANCS DAF,00026424
South Ribble Council,http://statistics.data.gov.uk/doc/local-authority/30UN,Area 2 - Waste Transport/Eastern & Central Teams,Materials General,4040,1 VALVE - NX58 FJZ - JFC9674 - AW,22/12/2017,0000436678,311.17,Revenue,LANCS DAF,00026424
South Ribble Council,http://statistics.data.gov.uk/doc/local-authority/30UN,Regeneration,Professional Fees,4510,Technical support for preston junction,06/12/2017,0000436112,975.00,Revenue,LANCS WILDLIFE TRUST,00027009
South Ribble Council,http://statistics.data.gov.uk/doc/local-authority/30UN,Regeneration,Other Misc,4861,Light Up Leyland Contribution,13/12/2017,0000436374,"1,000.00",Revenue,Leyland Town Team,131620
South Ribble Council,http://statistics.data.gov.uk/doc/local-authority/30UN,HR & Communications,Agency Fees,1121,CONSULTANCY SERVICES,20/12/2017,0000436486,"11,450.00",Revenue,Lilja Consulting Ltd,132320
South Ribble Council,http://statistics.data.gov.uk/doc/local-authority/30UN,HR & Communications,Agency Fees,1121,Consultancy Services,20/12/2017,0000436502,"2,987.10",Revenue,Lilja Consulting Ltd,132320
South Ribble Council,http://statistics.data.gov.uk/doc/local-authority/30UN,Area 2 - Waste Transport/Eastern & Central Teams,Materials General,4040,1 FAN MOTOR & RESISTOR CE63 FJX JFC9707,20/12/2017,0000436568,312.25,Revenue,LOOKERS VOLKSWAGEN (PRESTON),00090780
South Ribble Council,http://statistics.data.gov.uk/doc/local-authority/30UN,Area 2 - Waste Transport/Eastern & Central Teams,External Contractors Charges,4570,3 CYLINDER REGRINDS - PO16HMU - JFC9526 - BO,13/12/2017,0000436368,195.00,Revenue,M W GRASS MACHINERY,131838
South Ribble Council,http://statistics.data.gov.uk/doc/local-authority/30UN,Area 2 - Waste Transport/Eastern & Central Teams,External Contractors Charges,4570,3 CYLINDER REGRINDS - PO12FOJ - JFC9542 - BO,13/12/2017,0000436368,195.00,Revenue,M W GRASS MACHINERY,131838
South Ribble Council,http://statistics.data.gov.uk/doc/local-authority/30UN,Neighbourhood Management,Materials General,4040,SOMERSBY CLOSE  T,08/12/2017,0000435563,46.00,Revenue,Main Street Signs Ltd,131922
South Ribble Council,http://statistics.data.gov.uk/doc/local-authority/30UN,Neighbourhood Management,Materials General,4040,BIRCH CRESCENT,08/12/2017,0000435563,13.00,Revenue,Main Street Signs Ltd,131922
South Ribble Council,http://statistics.data.gov.uk/doc/local-authority/30UN,Neighbourhood Management,Materials General,4040,BROADWOOD CLOSE  T,08/12/2017,0000435563,47.00,Revenue,Main Street Signs Ltd,131922
South Ribble Council,http://statistics.data.gov.uk/doc/local-authority/30UN,Neighbourhood Management,Materials General,4040,DUDDLE LANE,08/12/2017,0000435563,160.00,Revenue,Main Street Signs Ltd,131922
South Ribble Council,http://statistics.data.gov.uk/doc/local-authority/30UN,Neighbourhood Management,Materials General,4040,HAIG AVENUE,08/12/2017,0000435563,40.00,Revenue,Main Street Signs Ltd,131922
South Ribble Council,http://statistics.data.gov.uk/doc/local-authority/30UN,Neighbourhood Management,Materials General,4040,BROADFIELD WALK,08/12/2017,0000435563,14.00,Revenue,Main Street Signs Ltd,131922
South Ribble Council,http://statistics.data.gov.uk/doc/local-authority/30UN,Neighbourhood Management,Materials General,4040,MOORSIDE DRIVE  MEADOWS REACH,08/12/2017,0000435563,57.00,Revenue,Main Street Signs Ltd,131922
South Ribble Council,http://statistics.data.gov.uk/doc/local-authority/30UN,Neighbourhood Management,Materials General,4040,BOW LANE,08/12/2017,0000435563,74.00,Revenue,Main Street Signs Ltd,131922
South Ribble Council,http://statistics.data.gov.uk/doc/local-authority/30UN,Neighbourhood Management,Materials General,4040,BOW LANE,08/12/2017,0000435563,7.00,Revenue,Main Street Signs Ltd,131922
South Ribble Council,http://statistics.data.gov.uk/doc/local-authority/30UN,Neighbourhood Management,Materials General,4040,DENBIGH CLOSE,08/12/2017,0000435563,42.00,Revenue,Main Street Signs Ltd,131922
South Ribble Council,http://statistics.data.gov.uk/doc/local-authority/30UN,Neighbourhood Management,Materials General,4040,HARLECH DRIVE,08/12/2017,0000435563,168.00,Revenue,Main Street Signs Ltd,131922
South Ribble Council,http://statistics.data.gov.uk/doc/local-authority/30UN,Neighbourhood Management,Materials General,4040,DELIVER CHARGE,08/12/2017,0000435563,34.50,Revenue,Main Street Signs Ltd,131922
South Ribble Council,http://statistics.data.gov.uk/doc/local-authority/30UN,Housing,Cap Grant- Improve Grants,C570,DFG WORKS TO BATHROOM AS PER QUOTE AT ADDRESS REDACTED COST OF WORK 6175.00,20/12/2017,0000436587,"6,175.00",Revenue,MLDB Ltd,132369
South Ribble Council,http://statistics.data.gov.uk/doc/local-authority/30UN,Information Services,Capital Expenditure,C234,"Migration of data from AKS - 4 days @ 800 per day, as per quote",22/12/2017,0000436680,"3,200.00",Revenue,Modern Mindset Ltd,132250
South Ribble Council,http://statistics.data.gov.uk/doc/local-authority/30UN,Revenues Plus,Agency Fees,1121,Agency Staff - NAME REDACTED for November 2017,01/12/2017,0000436177,997.81,Revenue,MORGAN HUNT PUBLIC SECTOR LTD,00120401
South Ribble Council,http://statistics.data.gov.uk/doc/local-authority/30UN,Revenues Plus,Agency Fees,1121,Agency Staff - NAME REDACTED for November 2017,13/12/2017,0000436338,991.38,Revenue,MORGAN HUNT PUBLIC SECTOR LTD,00120401
South Ribble Council,http://statistics.data.gov.uk/doc/local-authority/30UN,Revenues Plus,Agency Fees,1121,Agency Staff - NAME REDACTED for November 2017,20/12/2017,0000436530,972.06,Revenue,MORGAN HUNT PUBLIC SECTOR LTD,00120401
South Ribble Council,http://statistics.data.gov.uk/doc/local-authority/30UN,Area 1 - Penwortham Western Parishes,Professional Fees,4521,STRAY DOG SERVICE - NOVEMBER 2017,20/12/2017,0000436395,326.07,Revenue,MORNINGSIDE KENNELS,00067755
South Ribble Council,http://statistics.data.gov.uk/doc/local-authority/30UN,Area 3 - Parks/Leyland East West,Grounds Maint Cntrctrs Chgs,4657,ANNUAL INSPECTIONS OF EXISITNG SITES,22/12/2017,0000435678,"1,702.00",Revenue,MORRAL PLAY SERVICES LTD,130490
South Ribble Council,http://statistics.data.gov.uk/doc/local-authority/30UN,Revenues Plus,Balance Sheet,0001,,20/12/2017,0000436497,261.62,Revenue,NAME REDACTED,132448
South Ribble Council,http://statistics.data.gov.uk/doc/local-authority/30UN,Housing,Cap Grant- Improve Grants,C570,DFG WORKS FOR RAMP AS PER QUOTE ADDRESS REDACTED COST OF WORK 3535.11 CUSTOMER CONTRIBUTION,08/12/2017,0000436281,"3,535.11",Revenue,MS Landscapes,132379
South Ribble Council,http://statistics.data.gov.uk/doc/local-authority/30UN,Regeneration,Other Misc,4851,Tablet with 4g connection,20/12/2017,0000436410,592.78,Revenue,MYPREMIER LTD,130091
South Ribble Council,http://statistics.data.gov.uk/doc/local-authority/30UN,HR & Communications,Operational Furniture & Equip,4010,IPAD PRO 10 (with 4G ) for use by the Communication Team as per quote 172480 and email to NAME REDACTED Please arra,20/12/2017,0000436532,665.00,Revenue,MYPREMIER LTD,130091
South Ribble Council,http://statistics.data.gov.uk/doc/local-authority/30UN,Development Enterprise & Comm Mgnt,Other Misc,485K,Leyland Christmas Festival 2017   X 3 Spitz Marquees 6m x 6m  @ 810  8 Water Ballast/Fastening Down + Covers 120.00 40 ,08/12/2017,0000436241,"1,205.00",Revenue,NATIONWIDE MARQUEE HIRE LTD,130006
South Ribble Council,http://statistics.data.gov.uk/doc/local-authority/30UN,Area 2 - Waste Transport/Eastern & Central Teams,External Contractors Charges,4570,STEAM CLEAN - JFC9460 - PJ62UCG - 8.11.17,20/12/2017,0000436276,65.00,Revenue,NAYLORS TRANSPORT (LEYLAND) ltd,00114828
South Ribble Council,http://statistics.data.gov.uk/doc/local-authority/30UN,Area 2 - Waste Transport/Eastern & Central Teams,External Contractors Charges,4570,STEAM CLEAN - JFC9461 - VN10DKL - 9.11.17,20/12/2017,0000436276,65.00,Revenue,NAYLORS TRANSPORT (LEYLAND) ltd,00114828
South Ribble Council,http://statistics.data.gov.uk/doc/local-authority/30UN,Area 2 - Waste Transport/Eastern & Central Teams,External Contractors Charges,4570,STEAM CLEAN - JFC9462 - VK09AHJ - 10.11.17,20/12/2017,0000436276,65.00,Revenue,NAYLORS TRANSPORT (LEYLAND) ltd,00114828
South Ribble Council,http://statistics.data.gov.uk/doc/local-authority/30UN,Area 2 - Waste Transport/Eastern & Central Teams,External Contractors Charges,4570,STEAM CLEAN - JFC9463 - VO65KPZ - 15.11.17,20/12/2017,0000436276,65.00,Revenue,NAYLORS TRANSPORT (LEYLAND) ltd,00114828
South Ribble Council,http://statistics.data.gov.uk/doc/local-authority/30UN,Area 2 - Waste Transport/Eastern & Central Teams,External Contractors Charges,4570,STEAM CLEAN - JFC9464 - PJ62UCM - 16.11.17,20/12/2017,0000436276,65.00,Revenue,NAYLORS TRANSPORT (LEYLAND) ltd,00114828
South Ribble Council,http://statistics.data.gov.uk/doc/local-authority/30UN,Area 2 - Waste Transport/Eastern & Central Teams,External Contractors Charges,4570,STEAM CLEAN (MOT) - JFC9465 - VO65KRE - 17.11.17,20/12/2017,0000436276,75.00,Revenue,NAYLORS TRANSPORT (LEYLAND) ltd,00114828
South Ribble Council,http://statistics.data.gov.uk/doc/local-authority/30UN,Area 2 - Waste Transport/Eastern & Central Teams,External Contractors Charges,4570,STEAM CLEAN - JFC9466 - MX04YNL - 23.11.17,20/12/2017,0000436276,65.00,Revenue,NAYLORS TRANSPORT (LEYLAND) ltd,00114828
South Ribble Council,http://statistics.data.gov.uk/doc/local-authority/30UN,Area 2 - Waste Transport/Eastern & Central Teams,External Contractors Charges,4570,STEAM CLEAN - JFC9467 - NX58FJZ - 24.11.17,20/12/2017,0000436276,65.00,Revenue,NAYLORS TRANSPORT (LEYLAND) ltd,00114828
South Ribble Council,http://statistics.data.gov.uk/doc/local-authority/30UN,Area 2 - Waste Transport/Eastern & Central Teams,External Contractors Charges,4570,STEAM CLEAN - JFC9469 - YP11CFM - 29.11.17,20/12/2017,0000436276,65.00,Revenue,NAYLORS TRANSPORT (LEYLAND) ltd,00114828
South Ribble Council,http://statistics.data.gov.uk/doc/local-authority/30UN,Area 2 - Waste Transport/Eastern & Central Teams,External Contractors Charges,4570,STEAM CLEAN - JFC9470 - PO13UUM - 30.11.17,20/12/2017,0000436276,65.00,Revenue,NAYLORS TRANSPORT (LEYLAND) ltd,00114828
South Ribble Council,http://statistics.data.gov.uk/doc/local-authority/30UN,Area 2 - Waste Transport/Eastern & Central Teams,External Contractors Charges,4570,STEAM CLEAN (MOT) - JFC9468 - VO65KRD - 24.11.17,20/12/2017,0000436276,75.00,Revenue,NAYLORS TRANSPORT (LEYLAND) ltd,00114828
South Ribble Council,http://statistics.data.gov.uk/doc/local-authority/30UN,Area 2 - Waste Transport/Eastern & Central Teams,External Contractors Charges,4570,STEAM CLEAN - JFC9471 - VO65KPY - 1.12.17,20/12/2017,0000436276,65.00,Revenue,NAYLORS TRANSPORT (LEYLAND) ltd,00114828
South Ribble Council,http://statistics.data.gov.uk/doc/local-authority/30UN,Information Services,Processing-Internal,4212,StormAgent renewal for period 28/11/17 - 27/11/18,01/12/2017,0000436171,"6,615.00",Revenue,NCC Group Security Services Ltd,132130
South Ribble Council,http://statistics.data.gov.uk/doc/local-authority/30UN,Property Services,Client Internal Charges,4590,2017 / 2018 fees for the front end loader weekly exchange at Leyland Market,13/12/2017,0000436426,401.40,Revenue,NEALES WASTE MANAGEMENT,130129
South Ribble Council,http://statistics.data.gov.uk/doc/local-authority/30UN,Regeneration,Other Misc,4851,"Purchase of 6 x Bolero centre foldaway rectangle utility tables 6ft. 41.99 each Please deliver to ADDRESS REDACTED",20/12/2017,0000436280,295.74,Revenue,NISBETS,00030164
South Ribble Council,http://statistics.data.gov.uk/doc/local-authority/30UN,Property Services,Rep & Maint Premises,2020,Please attend Worden park to clear the blockage to the pumping station.,20/12/2017,0000431921,"1,175.00",Revenue,NORTH WEST MAINTENANCE SERVICES LTD,00114763
South Ribble Council,http://statistics.data.gov.uk/doc/local-authority/30UN,Property Services,Rep & Maint Premises,2020,Please attend Worden Park - Alarm is going off at the Worden Park pumping station following power outage 01/11/2017 - please ,06/12/2017,0000436204,385.00,Revenue,NORTH WEST MAINTENANCE SERVICES LTD,00114763
South Ribble Council,http://statistics.data.gov.uk/doc/local-authority/30UN,Area 1 - Penwortham Western Parishes,Professional Fees,4514,DEPLOYMENT OF OFFICERS NOVEMBER 2017,13/12/2017,0000436474,"1,622.88",Revenue,NSL LTD,00116868
South Ribble Council,http://statistics.data.gov.uk/doc/local-authority/30UN,Area 1 - Penwortham Western Parishes,Other Misc,4855,CASH COLLECTION & RING-GO CHARGES NOVEMBER 2017,13/12/2017,0000436474,416.55,Revenue,NSL LTD,00116868
South Ribble Council,http://statistics.data.gov.uk/doc/local-authority/30UN,Information Services,Peripherals,4247,"Netilla Licence renewal 04/12/17 - 03/12/18, as per quote",01/12/2017,0000436153,"1,440.00",Revenue,NVIRON LTD,00028781
South Ribble Council,http://statistics.data.gov.uk/doc/local-authority/30UN,Information Services,Peripherals,4247,Annual purchase order for 1yr SystemCare Support Service for period 01/04/17 - 31/03/18,08/12/2017,0000436285,"5,506.00",Revenue,NVIRON LTD,00028781
South Ribble Council,http://statistics.data.gov.uk/doc/local-authority/30UN,Area 3 - Parks/Leyland East West,Grounds Maint Cntrctrs Chgs,4657,Tarmac kissing gate on Hurst Grange Park Playground.,13/12/2017,0000435764,575.00,Revenue,O`Callaghan Ltd,132068
South Ribble Council,http://statistics.data.gov.uk/doc/local-authority/30UN,Area 3 - Parks/Leyland East West,Grounds Maint Cntrctrs Chgs,4657,Macadam Patching Work and Timber Edging Path Running through Shrugs Wood as identified with NAME REDACTED on Site,13/12/2017,0000435774,675.00,Revenue,O`Callaghan Ltd,132068
South Ribble Council,http://statistics.data.gov.uk/doc/local-authority/30UN,Property Services,Rep & Maint Premises,2020,Hire of generators for Worden Park to cover the loss of power during work done Electricity NW on 1st Nov 2017 and subsequent,13/12/2017,0000436358,374.36,Revenue,One Stop Hire,132396
South Ribble Council,http://statistics.data.gov.uk/doc/local-authority/30UN,Planning,Agency Fees,1121,NAME REDACTED Consultant 6 months at 46ph,20/12/2017,0000436366,"1,817.00",Revenue,Park Avenue Recruitment,132388
South Ribble Council,http://statistics.data.gov.uk/doc/local-authority/30UN,Area 1 - Penwortham Western Parishes,Operational Furniture & Equip,4013,Call out to repair P&D Machine No 8 at Hope Terrace Lostock Hall on 23.11.17.  Replaced key board display,08/12/2017,0000436232,486.75,Revenue,PARKEON LTD,00082918
South Ribble Council,http://statistics.data.gov.uk/doc/local-authority/30UN,Property Services,Rep & Maint Premises,2020,SUPPLY AND FIT 3 NO. GALVANISED TELESCOPIC BOLLARDS AT PENWORTHAM HOLME,15/12/2017,0000436430,"2,053.50",Revenue,PEERLESS FENCING LTD,130691
South Ribble Council,http://statistics.data.gov.uk/doc/local-authority/30UN,Revenues Plus,External Contractors Charges,4575,Capita Benefits Northern User Group buffet - 60 people - 6 per head,01/12/2017,0000435846,360.00,Revenue,Penningtons Catering Ltd,131684
South Ribble Council,http://statistics.data.gov.uk/doc/local-authority/30UN,Area 2 - Waste Transport/Eastern & Central Teams,Cap Vehicles,C440,1 NO. MOVANO CREWCAB L3H1 RWD HD 2.3 CDTi Bi TURBO BLUEINJECTION WITH TIPPER BODY WHITE CAB AS PER,08/12/2017,0000435783,"26,889.47",Revenue,Pentagon Corporate Fleet,132191
South Ribble Council,http://statistics.data.gov.uk/doc/local-authority/30UN,Area 2 - Waste Transport/Eastern & Central Teams,Cap Vehicles,C440,VED & 1st reg,08/12/2017,0000435783,295.00,Revenue,Pentagon Corporate Fleet,132191
South Ribble Council,http://statistics.data.gov.uk/doc/local-authority/30UN,Environmental Health,Professional Fees,4522,gov fee,13/12/2017,0000436406,704.00,Revenue,Personnel Checks,131483
South Ribble Council,http://statistics.data.gov.uk/doc/local-authority/30UN,Environmental Health,Professional Fees,4522,admin fee,13/12/2017,0000436406,213.28,Revenue,Personnel Checks,131483
South Ribble Council,http://statistics.data.gov.uk/doc/local-authority/30UN,Environmental Health,Professional Fees,4522,volunteer check,13/12/2017,0000436406,15.00,Revenue,Personnel Checks,131483
South Ribble Council,http://statistics.data.gov.uk/doc/local-authority/30UN,Environmental Health,Professional Fees,4522,gov fee,13/12/2017,0000436407,352.00,Revenue,Personnel Checks,131483
South Ribble Council,http://statistics.data.gov.uk/doc/local-authority/30UN,Environmental Health,Professional Fees,4522,admin fee,13/12/2017,0000436407,106.64,Revenue,Personnel Checks,131483
South Ribble Council,http://statistics.data.gov.uk/doc/local-authority/30UN,Environmental Health,Professional Fees,4522,gov fee,13/12/2017,0000436408,484.00,Revenue,Personnel Checks,131483
South Ribble Council,http://statistics.data.gov.uk/doc/local-authority/30UN,Environmental Health,Professional Fees,4522,admin fee,13/12/2017,0000436408,146.63,Revenue,Personnel Checks,131483
South Ribble Council,http://statistics.data.gov.uk/doc/local-authority/30UN,Area 3 - Parks/Leyland East West,Grounds Maint Cntrctrs Chgs,4657,Supply and fit New Rope on Worden Park Train.,20/12/2017,0000436322,425.00,Revenue,PLAYSOUND SERVICE LTD,00097660
South Ribble Council,http://statistics.data.gov.uk/doc/local-authority/30UN,Area 3 - Parks/Leyland East West,Grounds Maint Cntrctrs Chgs,4657,Construct and fit dolphin play panels at Riverside Playground Please pick up teen shelter table template picking up ropes/dolphin,20/12/2017,0000436322,"1,785.00",Revenue,PLAYSOUND SERVICE LTD,00097660
South Ribble Council,http://statistics.data.gov.uk/doc/local-authority/30UN,Area 2 - Waste Transport/Eastern & Central Teams,Vehicle Running Costs,3137,,11/12/2017,0000436329,650.00,Revenue,POST OFFICE LTD,00031354
South Ribble Council,http://statistics.data.gov.uk/doc/local-authority/30UN,Area 2 - Waste Transport/Eastern & Central Teams,Vehicle Running Costs,3137,,11/12/2017,0000436329,650.00,Revenue,POST OFFICE LTD,00031354
South Ribble Council,http://statistics.data.gov.uk/doc/local-authority/30UN,Area 2 - Waste Transport/Eastern & Central Teams,Vehicle Running Costs,3137,,11/12/2017,0000436329,650.00,Revenue,POST OFFICE LTD,00031354
South Ribble Council,http://statistics.data.gov.uk/doc/local-authority/30UN,Information Services,Stationery,4133,"60,000 sheets Evolution Everyday A4 80gm 15,000 sheets Evolution Business A4 90gm 2000 sheets Prem Elements White car",13/12/2017,0000436381,328.44,Revenue,PREMIER PAPER GROUP LTD,00022606
South Ribble Council,http://statistics.data.gov.uk/doc/local-authority/30UN,Regeneration,Other Misc,4851,Safe and Secure Scheme � South Ribble District Works and Equipment,13/12/2017,0000436473,255.17,Revenue,PRESTON CARE & REPAIR,130877
South Ribble Council,http://statistics.data.gov.uk/doc/local-authority/30UN,Area 2 - Waste Transport/Eastern & Central Teams,Materials General,4040,TYRE - RV14DTZ - 9704,06/12/2017,0000436107,286.50,Revenue,PRESTON TYRE SPECIALISTS,00109516
South Ribble Council,http://statistics.data.gov.uk/doc/local-authority/30UN,Area 2 - Waste Transport/Eastern & Central Teams,Agency Fees,1121,AGENCY MECHANIC - W/C 20/11/2017 (40 HOURS PER WEEK @ 19.58/HOUR),06/12/2017,0000436186,749.97,Revenue,Proactive Personnel Limited,131697
South Ribble Council,http://statistics.data.gov.uk/doc/local-authority/30UN,Area 2 - Waste Transport/Eastern & Central Teams,Agency Fees,1121,AGENCY MECHANIC - W/C 13/11/2017 (40 HOURS PER WEEK @19.58/HOUR),06/12/2017,0000436187,769.20,Revenue,Proactive Personnel Limited,131697
South Ribble Council,http://statistics.data.gov.uk/doc/local-authority/30UN,Area 2 - Waste Transport/Eastern & Central Teams,Agency Fees,1121,AGENCY MECHANIC - W/C 27.11.17 ( 40 HOURS PER WEEK @ 19.58/HOUR),08/12/2017,0000436350,769.20,Revenue,Proactive Personnel Limited,131697
South Ribble Council,http://statistics.data.gov.uk/doc/local-authority/30UN,Property Services,Capital Expenditure,C230,Please carry out works to the Civic Centre as per your tender return for the refurbishment of the offices an associated works,22/12/2017,0000436677,"35,370.00",Revenue,R W Mayor Ltd,132306
South Ribble Council,http://statistics.data.gov.uk/doc/local-authority/30UN,Property Services,Capital Expenditure,C230,LABOUR ELEMENT,22/12/2017,0000436677,"11,790.00",Revenue,R W Mayor Ltd,132306
South Ribble Council,http://statistics.data.gov.uk/doc/local-authority/30UN,Property Services,Rep & Maint Premises,2020,Take up and relay 10 square meters of concrete flags to various areas at Leyland Leisure centre as discussed on site with the ,15/12/2017,0000436453,370.00,Revenue,RED ROSE BUILDING MAINTENANCE,00085410
South Ribble Council,http://statistics.data.gov.uk/doc/local-authority/30UN,Property Services,Rep & Maint Premises,2020,materials,15/12/2017,0000436453,40.00,Revenue,RED ROSE BUILDING MAINTENANCE,00085410
South Ribble Council,http://statistics.data.gov.uk/doc/local-authority/30UN,Property Services,Rep & Maint Premises,2020,Undertake the following works at Penwortham Leisure Centre:- Take up and replace approx. 15 square metres of concrete flags ,15/12/2017,0000436456,300.00,Revenue,RED ROSE BUILDING MAINTENANCE,00085410
South Ribble Council,http://statistics.data.gov.uk/doc/local-authority/30UN,Property Services,Rep & Maint Premises,2020,materials,15/12/2017,0000436456,80.00,Revenue,RED ROSE BUILDING MAINTENANCE,00085410
South Ribble Council,http://statistics.data.gov.uk/doc/local-authority/30UN,Homelessness,Contractors Charges 5,5311,"OSM payment for Jan, Feb, and March 2017",15/12/2017,0000436384,"5,624.90",Revenue,REDDY & CO,00108177
South Ribble Council,http://statistics.data.gov.uk/doc/local-authority/30UN,Area 3 - Parks/Leyland East West,Grounds Maint Cntrctrs Chgs,4657,DRAINAGE INVESTIGAT6IONS WITH VACTOR AT REAR OF ADDRESS REDACTED,13/12/2017,0000436440,715.00,Revenue,Reid Construction & Civil Engineering Ltd,131544
South Ribble Council,http://statistics.data.gov.uk/doc/local-authority/30UN,Area 3 - Parks/Leyland East West,External Contractors Charges,4570,AS ABOVE (CODE SPLIT),13/12/2017,0000436440,715.00,Revenue,Reid Construction & Civil Engineering Ltd,131544
South Ribble Council,http://statistics.data.gov.uk/doc/local-authority/30UN,Information Services,Lease Rental Charges,4036,,08/12/2017,0000436307,"1,492.80",Revenue,RICOH (UK) LTD,00082976
South Ribble Council,http://statistics.data.gov.uk/doc/local-authority/30UN,Information Services,Lease Rental Charges,4036,,13/12/2017,0000436309,"9,701.97",Revenue,RICOH (UK) LTD,00082976
South Ribble Council,http://statistics.data.gov.uk/doc/local-authority/30UN,Information Services,Lease Rental Charges,4036,1/11/17 to 1/1/18,08/12/2017,0000436321,"1,343.79",Revenue,RICOH (UK) LTD,00082976
South Ribble Council,http://statistics.data.gov.uk/doc/local-authority/30UN,Regeneration,Other Misc,485A,"Traffic Management Scheme Road  Closure - To supply and hire all necessary road signs, road cones etc to enable road closure",20/12/2017,0000436519,620.00,Revenue,Road Safety Services LTD,131989
South Ribble Council,http://statistics.data.gov.uk/doc/local-authority/30UN,Neighbourhood Admin & Support,Operational Furniture & Equip,4010,BAG LOOP - (BOX OF 10),15/12/2017,0000436418,255.00,Revenue,ROBERT ACTON PRODUCTS DEVELOPMENTS,00014452
South Ribble Council,http://statistics.data.gov.uk/doc/local-authority/30UN,Homelessness,Contributions,4730,Rent in advance and bond for NAME REDACTED Property at ADDRESS REDACTED,20/12/2017,0000436634,"1,100.00",Revenue,ROBERTS LETTINGS,130672
South Ribble Council,http://statistics.data.gov.uk/doc/local-authority/30UN,Information Services,Postage,4295,,22/12/2017,0000436605,259.84,Revenue,ROYAL MAIL GROUP PLC,00033543
South Ribble Council,http://statistics.data.gov.uk/doc/local-authority/30UN,Area 3 - Parks/Leyland East West,Grounds Maint Cntrctrs Chgs,4657,"CLEARANCE OF RHODODENDRONS IN SHAW WOOD, WORDEN PARK TO CONTROL SPREAD OF RAMORUM DISEASE",13/12/2017,0000436371,"3,654.00",Revenue,RUSS ASPINALL T/A BEARDWOOD TREE SERVICE,00120443
South Ribble Council,http://statistics.data.gov.uk/doc/local-authority/30UN,Property Services,Energy Costs,2304,6/10/17 to 6/11/17,20/12/2017,0000436524,834.60,Revenue,SCOTTISH HYDRO ELECTRIC,130051
South Ribble Council,http://statistics.data.gov.uk/doc/local-authority/30UN,Property Services,Energy Costs,2307,CCL,20/12/2017,0000436524,62.68,Revenue,SCOTTISH HYDRO ELECTRIC,130051
South Ribble Council,http://statistics.data.gov.uk/doc/local-authority/30UN,Property Services,Energy Costs,2304,31/8/17 to 23/,20/12/2017,0000436525,"1,117.49",Revenue,SCOTTISH HYDRO ELECTRIC,130051
South Ribble Council,http://statistics.data.gov.uk/doc/local-authority/30UN,Property Services,Energy Costs,2307,CCL,20/12/2017,0000436525,85.52,Revenue,SCOTTISH HYDRO ELECTRIC,130051
South Ribble Council,http://statistics.data.gov.uk/doc/local-authority/30UN,Property Services,Energy Costs,2304,31/8/17 to 30/,20/12/2017,0000436526,712.30,Revenue,SCOTTISH HYDRO ELECTRIC,130051
South Ribble Council,http://statistics.data.gov.uk/doc/local-authority/30UN,Property Services,Energy Costs,2307,CCL,20/12/2017,0000436526,53.00,Revenue,SCOTTISH HYDRO ELECTRIC,130051
South Ribble Council,http://statistics.data.gov.uk/doc/local-authority/30UN,Property Services,Energy Costs,2303,2/10/17 to 6/12/17,20/12/2017,0000436542,297.62,Revenue,SCOTTISH HYDRO ELECTRIC,130051
South Ribble Council,http://statistics.data.gov.uk/doc/local-authority/30UN,Property Services,Energy Costs,2307,CCL,20/12/2017,0000436542,14.07,Revenue,SCOTTISH HYDRO ELECTRIC,130051
South Ribble Council,http://statistics.data.gov.uk/doc/local-authority/30UN,Property Services,Energy Costs,2303,8/9/17 to 15/11/17,20/12/2017,0000436545,604.43,Revenue,SCOTTISH HYDRO ELECTRIC,130051
South Ribble Council,http://statistics.data.gov.uk/doc/local-authority/30UN,Property Services,Energy Costs,2307,CCL,20/12/2017,0000436545,27.99,Revenue,SCOTTISH HYDRO ELECTRIC,130051
South Ribble Council,http://statistics.data.gov.uk/doc/local-authority/30UN,Property Services,Energy Costs,2303,1/11/17 to 30/11/17,20/12/2017,0000436547,408.13,Revenue,SCOTTISH HYDRO ELECTRIC,130051
South Ribble Council,http://statistics.data.gov.uk/doc/local-authority/30UN,Property Services,Energy Costs,2307,CCL,20/12/2017,0000436547,20.15,Revenue,SCOTTISH HYDRO ELECTRIC,130051
South Ribble Council,http://statistics.data.gov.uk/doc/local-authority/30UN,Property Services,Energy Costs,2303,8/9/17 to 15/11/17,20/12/2017,0000436549,604.43,Revenue,SCOTTISH HYDRO ELECTRIC,130051
South Ribble Council,http://statistics.data.gov.uk/doc/local-authority/30UN,Property Services,Energy Costs,2307,CCL,20/12/2017,0000436549,27.99,Revenue,SCOTTISH HYDRO ELECTRIC,130051
South Ribble Council,http://statistics.data.gov.uk/doc/local-authority/30UN,Property Services,Energy Costs,2303,1/11/17 to 30/11/17,20/12/2017,0000436551,"3,220.39",Revenue,SCOTTISH HYDRO ELECTRIC,130051
South Ribble Council,http://statistics.data.gov.uk/doc/local-authority/30UN,Property Services,Energy Costs,2307,CCL,20/12/2017,0000436551,166.97,Revenue,SCOTTISH HYDRO ELECTRIC,130051
South Ribble Council,http://statistics.data.gov.uk/doc/local-authority/30UN,Property Services,Energy Costs,2303,1/11/17 to 30/11/17,20/12/2017,0000436560,"1,850.01",Revenue,SCOTTISH HYDRO ELECTRIC,130051
South Ribble Council,http://statistics.data.gov.uk/doc/local-authority/30UN,Property Services,Energy Costs,2307,CCL,20/12/2017,0000436560,101.53,Revenue,SCOTTISH HYDRO ELECTRIC,130051
South Ribble Council,http://statistics.data.gov.uk/doc/local-authority/30UN,Property Services,Energy Costs,2303,1/11/17 to 30/11/17,20/12/2017,0000436561,920.51,Revenue,SCOTTISH HYDRO ELECTRIC,130051
South Ribble Council,http://statistics.data.gov.uk/doc/local-authority/30UN,Property Services,Energy Costs,2307,CCL,20/12/2017,0000436561,47.24,Revenue,SCOTTISH HYDRO ELECTRIC,130051
South Ribble Council,http://statistics.data.gov.uk/doc/local-authority/30UN,Property Services,Energy Costs,2303,8/9/17 to 15/11/17,20/12/2017,0000436564,"1,243.02",Revenue,SCOTTISH HYDRO ELECTRIC,130051
South Ribble Council,http://statistics.data.gov.uk/doc/local-authority/30UN,Property Services,Energy Costs,2307,CCL,20/12/2017,0000436564,58.14,Revenue,SCOTTISH HYDRO ELECTRIC,130051
South Ribble Council,http://statistics.data.gov.uk/doc/local-authority/30UN,Area 2 - Waste Transport/Eastern & Central Teams,Operational Furniture & Equip,4010,STAINLESS STEEL WASHTROUGH (MODEL NO. SCRSANX120),22/12/2017,0000436641,308.33,Revenue,Screwfix,131637
South Ribble Council,http://statistics.data.gov.uk/doc/local-authority/30UN,Area 2 - Waste Transport/Eastern & Central Teams,Operational Furniture & Equip,4010,CHROME PLATED DZR BRASS CONSTRUCTION  (MODEL NO PEG402),22/12/2017,0000436641,43.74,Revenue,Screwfix,131637
South Ribble Council,http://statistics.data.gov.uk/doc/local-authority/30UN,Area 2 - Waste Transport/Eastern & Central Teams,Operational Furniture & Equip,4010,C 1/4 TURN BTATHROOM BASIN TAPS - PAIR (MODEL 52504),22/12/2017,0000436641,16.66,Revenue,Screwfix,131637
South Ribble Council,http://statistics.data.gov.uk/doc/local-authority/30UN,Healthy Communities,Consultancy Fees,4536,R & M 2017/18,20/12/2017,0000436247,"16,256.79",Revenue,SERCO LEISURE (OP) LTD,00094906
South Ribble Council,http://statistics.data.gov.uk/doc/local-authority/30UN,Information Services,Professional Fees,4520,Shredding of Confidential Waste 2017/18,13/12/2017,0000436423,269.40,Revenue,SHRED-IT LTD,00109134
South Ribble Council,http://statistics.data.gov.uk/doc/local-authority/30UN,Development Enterprise & Comm Mgnt,Advertising,4842,Provision of Christmas Dinner for the volunteer staff at South Ribble Museum & Exhibition Centre. In the presence of the Mayor ,22/12/2017,0000436685,533.75,Revenue,SLATERS CATERING LTD,131032
South Ribble Council,http://statistics.data.gov.uk/doc/local-authority/30UN,Information Services,Peripherals,4247,"Cerberus FTP Server (Enterprise Edition, Single Renewal - 1 year support and upgrades, ESD)",08/12/2017,0000436286,637.48,Revenue,SOFTCAT LIMITED,130963
South Ribble Council,http://statistics.data.gov.uk/doc/local-authority/30UN,Information Services,Peripherals,4243,"Dreamweaver CC Licence for 12 months, as per quote OVREEA01H2A8 V3",13/12/2017,0000436405,278.21,Revenue,SOFTCAT LIMITED,130963
South Ribble Council,http://statistics.data.gov.uk/doc/local-authority/30UN,HR & Communications,Operational Furniture & Equip,4010,Acrobat Pro DC for teams Team Licensing Subscription Democratic Services - 3 at 128.14,22/12/2017,0000436489,384.42,Revenue,SOFTCAT LIMITED,130963
South Ribble Council,http://statistics.data.gov.uk/doc/local-authority/30UN,HR & Communications,Operational Furniture & Equip,4010,Acrobat Pro DC for teams Team Licensing Subscription Public Relations & Communications - 2 at 128.14,22/12/2017,0000436489,256.28,Revenue,SOFTCAT LIMITED,130963
South Ribble Council,http://statistics.data.gov.uk/doc/local-authority/30UN,Planning,Operational Furniture & Equip,4010,Subscriptions Acrobat Pro DC for teams Team Licensing Subscription Renewal Monthly 1 User Level 2 10 - 49   x 4 @128.14,20/12/2017,0000436584,512.56,Revenue,SOFTCAT LIMITED,130963
South Ribble Council,http://statistics.data.gov.uk/doc/local-authority/30UN,Revenues Plus,Professional Fees,4520,Adobe VIP renewal,20/12/2017,0000436585,256.28,Revenue,SOFTCAT LIMITED,130963
South Ribble Council,http://statistics.data.gov.uk/doc/local-authority/30UN,Homelessness,Peripherals,4272,Defender Window Alert alarms x 400 as per your Price Quotation PQ17003697,13/12/2017,0000436132,236.00,Revenue,SOLON SECURITY LTD,00113845
South Ribble Council,http://statistics.data.gov.uk/doc/local-authority/30UN,Homelessness,Peripherals,4272,Defender Window Alert alarms x 400 as per your Price Quotation PQ17003697,13/12/2017,0000436132,236.00,Revenue,SOLON SECURITY LTD,00113845
South Ribble Council,http://statistics.data.gov.uk/doc/local-authority/30UN,Healthy Communities,Consultancy Fees,4532,Leisure Services Fee 2017/18,20/12/2017,0000436246,"15,778.33",Revenue,SOUTH RIBBLE COMMUNITY LEISURE LTD,00094210
South Ribble Council,http://statistics.data.gov.uk/doc/local-authority/30UN,Planning,Operational Furniture & Equip,4010,5000 x  Planning leaflets - A neighbours guide on how to comment,06/12/2017,0000436279,550.00,Revenue,SPRINTPRINT (PRESTON),131207
South Ribble Council,http://statistics.data.gov.uk/doc/local-authority/30UN,Development Enterprise & Comm Mgnt,Other Misc,4851,First Aid provision for Leyland Festival on Saturday 17th June 2017  6 x First Aiders 2 x Emergency Transport Attendants 1 x Me,06/12/2017,0000436226,819.70,Revenue,ST JOHNS AMBULANCE,00116253
South Ribble Council,http://statistics.data.gov.uk/doc/local-authority/30UN,Property Services,Rents,2401,"2017 / 2018 rental fees for Forward industrial estate, Talbot Road, Leyland PR25 2ZJ. Property Ref 2710/081",08/12/2017,0000436155,"16,147.50",Revenue,STONEWELL PROPERTY COMPANY LTD,00118138
South Ribble Council,http://statistics.data.gov.uk/doc/local-authority/30UN,Property Services,Rents,2401,less qtrly charge,08/12/2017,0000436155,"-2,850.00",Revenue,STONEWELL PROPERTY COMPANY LTD,00118138
South Ribble Council,http://statistics.data.gov.uk/doc/local-authority/30UN,Property Services,Capital Expenditure,C230,Please carry out the cabling works for the new clocking/security system as per your quotation ref 0051699,08/12/2017,0000435982,"4,935.82",Revenue,SUDLOWS ENTERPRISE SERVICES LTD,00002765
South Ribble Council,http://statistics.data.gov.uk/doc/local-authority/30UN,Area 2 - Waste Transport/Eastern & Central Teams,External Contractors Charges,4570,po was cancelled but can now be paid as per email from NAME REDACTED,13/12/2017,0000436006,448.00,Revenue,Tecalemit Garage Equipment Company Limited,132135
South Ribble Council,http://statistics.data.gov.uk/doc/local-authority/30UN,Area 2 - Waste Transport/Eastern & Central Teams,Materials General,4040,"2 SENSORS - BIN 374, 2 SENSORS - BIN 372 - AW",13/12/2017,0000436359,"1,217.00",Revenue,TERBERG MATEC UK LTD,00058625
South Ribble Council,http://statistics.data.gov.uk/doc/local-authority/30UN,Area 2 - Waste Transport/Eastern & Central Teams,Materials General,4040,2 x BIN STOP ROLLERS - VN10DKL - JFC9760,13/12/2017,0000436412,515.38,Revenue,TERBERG MATEC UK LTD,00058625
South Ribble Council,http://statistics.data.gov.uk/doc/local-authority/30UN,Area 2 - Waste Transport/Eastern & Central Teams,Materials General,4040,PANEL - VK09AHJ - JFC9766 - AW,20/12/2017,0000436500,320.69,Revenue,TERBERG MATEC UK LTD,00058625
South Ribble Council,http://statistics.data.gov.uk/doc/local-authority/30UN,Area 2 - Waste Transport/Eastern & Central Teams,External Contractors Charges,4570,SPEC REPAIR - JFC9762 - PJ62UCH - PD,20/12/2017,0000436598,306.73,Revenue,TERBERG MATEC UK LTD,00058625
South Ribble Council,http://statistics.data.gov.uk/doc/local-authority/30UN,Planning,Other Misc,4851,Removal of Surplus Office Furniture - ``Green Day`` Booking a van + driver and 2 men who will be assigned for the day- 2-3 luton,22/12/2017,0000436355,300.00,Revenue,Total Reuse CIC,132432
South Ribble Council,http://statistics.data.gov.uk/doc/local-authority/30UN,Regeneration,Other Misc,4851,Furniture and delivery,20/12/2017,0000436372,420.00,Revenue,Total Reuse CIC,132432
South Ribble Council,http://statistics.data.gov.uk/doc/local-authority/30UN,Regeneration,Other Misc,4851,vat items,20/12/2017,0000436372,115.00,Revenue,Total Reuse CIC,132432
South Ribble Council,http://statistics.data.gov.uk/doc/local-authority/30UN,Development Enterprise & Comm Mgnt,Other Misc,485A,500 Leyland Calendars 2018 @ @ 855,08/12/2017,0000436212,855.00,Revenue,TOWNSEND PRINT SERVICES LTD,00037170
South Ribble Council,http://statistics.data.gov.uk/doc/local-authority/30UN,Development Enterprise & Comm Mgnt,Other Misc,4851,Leyland Christmas Festival 2017 Stage & branding sound & engineers  @ 2980.00,20/12/2017,0000436414,"2,980.00",Revenue,UK Media Events Ltd,132263
South Ribble Council,http://statistics.data.gov.uk/doc/local-authority/30UN,Area 1 - Penwortham Western Parishes,External Contractors Charges,4570,SIGN CLEANING OVER 2  WEEKS COMMENCING 13.11.17 18.50 PER HR - 40HRS PER WEEK,08/12/2017,0000436245,"1,480.00",Revenue,ULTRA CLEAN CONSERVATORIES,130034
South Ribble Council,http://statistics.data.gov.uk/doc/local-authority/30UN,Property Services,Operational Furniture & Equip,4012,Annual Contract for 2017/2018 to cover the rental and the vending  machines at the Civic Centre,06/12/2017,0000436244,322.09,Revenue,VENDING ENTERPRISES,00101501
South Ribble Council,http://statistics.data.gov.uk/doc/local-authority/30UN,Information Services,Peripherals,4247,"Moss Side link, internet & router - Dec 17",08/12/2017,0000436335,"1,312.66",Revenue,VODAFONE RE:CABLE & WIRELESS UK,130810
South Ribble Council,http://statistics.data.gov.uk/doc/local-authority/30UN,Property Services,Water Charges,2511,28/8/17 to 27/11/17,08/12/2017,0000436272,634.35,Revenue,WATER PLUS,00029845
South Ribble Council,http://statistics.data.gov.uk/doc/local-authority/30UN,Property Services,Water Charges,2511,14/8/17 to 27/11/17,08/12/2017,0000436273,"4,987.03",Revenue,WATER PLUS,00029845
South Ribble Council,http://statistics.data.gov.uk/doc/local-authority/30UN,Property Services,Water Charges,2511,01/9/17 to 30/11/17,13/12/2017,0000436365,"7,118.05",Revenue,WATER PLUS,00029845
South Ribble Council,http://statistics.data.gov.uk/doc/local-authority/30UN,HR & Communications,Operational Furniture & Equip,4010,"Order Number: 449832 420 Lanyards - BLKD09-20B (70 each of, Blue, Green, Grey, Orange, Red & Yellow)  Single Set-Up Char",20/12/2017,0000436336,685.00,Revenue,We Brand It  re;Trade Promotions Ltd,132422
South Ribble Council,http://statistics.data.gov.uk/doc/local-authority/30UN,HR & Communications,Operational Furniture & Equip,4010,420 Round retractable ski pass holders - white - W13434,20/12/2017,0000436336,184.80,Revenue,We Brand It  re;Trade Promotions Ltd,132422
South Ribble Council,http://statistics.data.gov.uk/doc/local-authority/30UN,HR & Communications,Operational Furniture & Equip,4010,420 Rigid Plastic card holders(landscape) - BKLCH25,20/12/2017,0000436336,67.20,Revenue,We Brand It  re;Trade Promotions Ltd,132422
South Ribble Council,http://statistics.data.gov.uk/doc/local-authority/30UN,Legal,Consultancy Fees,4541,Professional services - NAME REDACTED 8 November until 29 November,13/12/2017,0000436463,970.50,Revenue,WEIGHTMANS LLP,00120867
South Ribble Council,http://statistics.data.gov.uk/doc/local-authority/30UN,Property Services,Rep & Maint Premises,2020,Repairs to Yard areas at Moss Side Depot as per your quotation16243 Item No 2-Repair potholes cut out defective tar and replace,01/12/2017,0000433180,"3,073.00",Revenue,WILLIAM PYE LTD,00031590
South Ribble Council,http://statistics.data.gov.uk/doc/local-authority/30UN,Property Services,Rep & Maint Premises,2020,Item No 3 - Lowering of gulley on tarmac area,01/12/2017,0000433180,580.00,Revenue,WILLIAM PYE LTD,00031590
South Ribble Council,http://statistics.data.gov.uk/doc/local-authority/30UN,Property Services,Rep & Maint Premises,2020,Item No 4 - Lay large patch of bitmac,01/12/2017,0000433180,"2,300.00",Revenue,WILLIAM PYE LTD,00031590
South Ribble Council,http://statistics.data.gov.uk/doc/local-authority/30UN,Property Services,Rep & Maint Premises,2020,Item No 5 - Replace 4 no charcon safety kerb covers,01/12/2017,0000433180,120.00,Revenue,WILLIAM PYE LTD,00031590
South Ribble Council,http://statistics.data.gov.uk/doc/local-authority/30UN,Area 3 - Parks/Leyland East West,Grounds Maint Cntrctrs Chgs,4657,2 No WORDEN PARK LARGE INFORMATION SIGNS @ 3100.00 EACH,08/12/2017,0000436087,"6,200.00",Revenue,WOODSTOCK SIGNS,00039039
South Ribble Council,http://statistics.data.gov.uk/doc/local-authority/30UN,Area 3 - Parks/Leyland East West,Grounds Maint Cntrctrs Chgs,4657,"2 NO. `GATES LOCKED` ALI PLATES (50.00) 1 NO. CEDAR PLATE IN STAINLESS STEEL ON SOFTWOOD POST (185.00) ",08/12/2017,0000436088,"1,120.00",Revenue,WOODSTOCK SIGNS,00039039
South Ribble Council,http://statistics.data.gov.uk/doc/local-authority/30UN,HR & Communications,Training Expense-Course Fees,1408,OCC HEALTH ACTIVITY FOR OCTOBER 2017,01/12/2017,0000436084,"2,019.00",Revenue,WRIGHTINGTON WIGAN & LEIGH NHS FOUNDATION TRUST,131288
